Cogmind - Beta 16 @@@ ROGUE MODE // 2025.11.02 @ 19:37:05 Player: Red Box Result: Destroyed by 5W-RHK(R) with Subdweller Beam Cannon Performance ------------- Evolutions (0) 0 Regions Visited (2) 400 Robots Destroyed (40) 200 Value Destroyed (834) 834 Prototype IDs (5) 100 Alien Tech Used (0) 0 Bonus (0) 0 TOTAL SCORE: 1534 Bonus ------- None Cogmind --------- Core Integrity 0/250 Matter 249/300 Energy 180/200 System Corruption 0% Temperature Warm (133) Movement Treading (240) Ox1 Location -10/Subcaves Parts ------- > --- POWER (1) -------- Subdweller Power Source > --- PROPULSION (2) --- Light Treads > --- UTILITY (2) ------ Large Storage Unit Makeshift Kinetic Plating > --- WEAPON (2) ------- Medium Laser Barrage Gun > --- INVENTORY (15) --- Light Treads Wheel Compact Wheel Subdweller Monowheel High-capacity Storage Unit High-capacity Battery (250) Scrap Shield EM Pulse Gun EMP Blaster EMP Blaster Subdweller Shrapnel Launcher Peak State ------------ > --- POWER ------------ Subdweller Power Source > --- PROPULSION ------- Light Treads Wheel > --- UTILITY ---------- Large Storage Unit Makeshift Kinetic Plating > --- WEAPON ----------- Subdweller Machine Gun Subdweller Machine Gun > --- INVENTORY -------- Light Treads Wheel Compact Wheel Subdweller Monowheel High-capacity Storage Unit High-capacity Battery Scrap Shield EM Pulse Gun Medium Laser Light Cannon EMP Blaster EMP Blaster Grenade Launcher Subdweller Shrapnel Launcher [Rating: 15] Favorites ----------- Power Ion Engine Engine Ion Engine Propulsion Aluminum Leg Treads Light Treads Leg Aluminum Leg Wheel Wheel Utility Large Storage Unit Device Improved Terrain Scanner Storage Large Storage Unit Protection Makeshift Kinetic Plating Weapon EM Pulse Gun Energy Gun EM Pulse Gun Ballistic Gun Subdweller Machine Gun Ballistic Cannon Light Cannon Launcher Grenade Launcher Special Weapon Mining Laser Build | -11 -10 -10 ------- Run | Yrd Mat Sub Slots Evolved . | . . . Power . | . . . Propulsion . | . . . Utility . | . . . Weapon . | . . . Parts Attached 31 | 8 7 16 Power 3 | 1 1 1 Engine 3 | 1 1 1 Core . | . . . Reactor . | . . . Propulsion 7 | 2 2 3 Treads 1 | . . 1 Leg 4 | 2 2 . Wheel 2 | . . 2 Hover . | . . . Flight . | . . . Utility 8 | 2 2 4 Device 3 | 1 . 2 Storage 3 | 1 2 . Processor . | . . . Hackware . | . . . Protection 2 | . . 2 Artifact . | . . . Weapon 13 | 3 2 8 Energy Gun 3 | 3 . . Energy Cannon . | . . . Ballistic Gun 3 | . . 3 Ballistic Cannon 1 | . . 1 Launcher 5 | . 1 4 Special Weapon 1 | . 1 . Impact Weapon . | . . . Slashing Weapon . | . . . Piercing Weapon . | . . . Special Melee Weapon . | . . . Unidentified Prototypes . | . . . Parts Lost 7 | . . 7 Power 1 | . . 1 Propulsion 1 | . . 1 Utility 2 | . . 2 Weapon 3 | . . 3 Highest Loss Streak 3 | . . 3 To Critical Strikes . | . . . Average Backups 12 | 4 12 13 Power . | . . . Propulsion 4 | 3 5 5 Utility 2 | . 2 2 Weapon 5 | . 5 5 Tool/Special . | . . . Unused Backups 9 | . 1 8 Power . | . . . Propulsion 5 | . . 5 Utility 3 | . 1 2 Weapon 1 | . . 1 Tool/Special . | . . . Average Slot Usage (%) 96 | . 99 92 Engine 13 | . 14 13 Treads 2 | . . 6 Leg 22 | . 28 14 Wheel 2 | . . 6 Device 11 | . 14 6 Storage 13 | . 14 13 Energy Gun 20 | . 25 10 Ballistic Gun 4 | . . 12 Ballistic Cannon 1 | . . 3 Peak Build Rating 15 | 9 10 15 Average Rating 9 | 5 9 10 On Entrance 6 | . 9 10 Avg Prop Armor Cover (%) 12 | . . 12 Naked Turns . | . . . Heaviest Build 40 | 15 31 40 Greatest Support 20 | 20 20 20 Greatest Overweight (x) 3 | . 1 3 Average Overweight (x) 1 | . . 2 Largest Inventory Capacity 15 | 8 15 15 Average Capacity 13 | 7 13 14 Most Carried 15 | 6 15 15 Average Carried 13 | 4 12 14 Final Capacity 15 | 8 15 15 Final Carried 15 | 6 15 12 Class Distribution -------------------- 100% | Mutant Dominant Class ---------------- Mutant | -10/Materials Mutant | -10/Subcaves Resources | -11 -10 -10 ----------- Run | Yrd Mat Sub Matter Collected 906 | 278 282 346 Remotely . | . . . Salvage Created 955 | 69 563 323 Parts 67 | 9 41 17 Haulers Intercepted 1 | . 1 . Recyclers Shooed . | . . . Parts Field Recycled . | . . . Retrieved Matter . | . . . Parts Self-Destructed 11 | . . 11 Prevented 2 | . . 2 Parts Restored . | . . . Kills | -11 -10 -10 ------- Run | Yrd Mat Sub Combat Hostiles Destroyed 26 | . 15 11 Guns 12 | . 6 6 AOE 14 | . 9 5 Classes Destroyed 11 | 1 8 2 Worker 1 | . 1 . Builder 1 | . 1 . Tunneler 4 | 3 1 . Hauler 1 | . 1 . Recycler 1 | . 1 . Mechanic 1 | . 1 . Turret 2 | . . 2 Watcher 3 | . 3 . Swarmer 13 | . 9 4 Grunt 8 | . 6 2 Subdweller 5 | . . 5 Best Kill Streak 7 | 2 7 4 Combat Bots Only 4 | . 4 4 Max Kills in Single Turn 3 | 1 3 2 Gunslinging . | . . . Exploded 2 | . 2 2 Melee . | . . . Uniques/NPCs Destroyed . | . . . Combat | -11 -10 -10 -------- Run | Yrd Mat Sub Hostile Shots Fired 120 | . 33 87 Missed 33 | . 11 22 Hits 87 | . 22 65 Projectile 87 | . 22 65 Critical Strikes 4 | . 1 3 Damage Taken 1309 | . 298 1011 Core 275 | . 85 190 Absorbed by Shields . | . . . Regen/Repaired (Parts) 60 | . 60 . Core Remaining (%) 100 | 100 . . Volleys Fired 93 | 8 37 48 Largest 2 | 2 2 2 Hottest 100 | 80 100 80 Shots Fired 141 | 10 58 73 Gun 112 | 10 49 53 Cannon 6 | . . 6 Launcher 22 | . 8 14 Special 1 | . 1 . Kinetic 38 | . . 38 Thermal 16 | 6 1 9 Explosive 12 | . 8 4 Electromagnetic 75 | 4 49 22 Robot Hit Streak 10 | 10 10 9 Robot Miss Streak 4 | . 4 2 Penetration Max . | . . . Secondary Targets . | . . . Shots Hit Robots 72 | 10 24 38 Core Hits 57 | 4 32 21 Critical Kills . | . . . Critical Parts Destroyed . | . . . Critical Strikes . | . . . Melee Attacks . | . . . Impact . | . . . Slashing . | . . . Piercing . | . . . Sneak Attacks . | . . . Combat Hostiles . | . . . Follow-up Attacks . | . . . Damage Inflicted 2558 | 159 1350 1049 Guns 970 | 128 346 496 Cannons 56 | . . 56 Explosions 1532 | 31 1004 497 Melee . | . . . Ramming . | . . . Kinetic 342 | . . 342 Thermal 323 | 105 128 90 Explosive 1177 | . 876 301 Electromagnetic 716 | 54 346 316 Impact . | . . . Slashing . | . . . Piercing . | . . . Highest Corruption . | . . . Average Corruption . | . . . Corruption Purged . | . . . Corruption Blocked . | . . . Overload Shots . | . . . Overflow Damage 11 | . 1 10 Projectiles . | . . . Explosions 11 | . 1 10 Melee . | . . . Knockbacks 2 | . . 2 Impact . | . . . Kinetic 2 | . . 2 Secondary . | . . . Self-Inflicted Damage 94 | . 72 22 Shots 5 | . 3 2 Rammed . | . . . Targets Rammed . | . . . Kicked . | . . . Crushed . | . . . Highest Temperature 217 | 60 102 217 Average Temperature 41 | 25 33 172 Received Heat Transfer 625 | . 69 556 Siege Activations . | . . . Martial Activations . | . . . Shielding Activations . | . . . Robots Disrupted . | . . . Combat Hostiles . | . . . Robots Corrupted 1 | . 1 . Combat Hostiles . | . . . Parts Fried 4 | . 2 2 Impact Corruptions . | . . . Robots Melted . | . . . Combat Hostiles . | . . . Parts Melted 1 | . . 1 Heat Transferred 731 | 272 200 259 Parts Sabotaged . | . . . Parts Stolen . | . . . Parts Stripped . | . . . Power Chain Reactions 3 | 1 2 . Alert | -11 -10 -10 ------- Run | Yrd Mat Sub Maximum Alert Level 1 | . 1 . Low Security (%) 85 | 100 85 . Level 1 14 | . 14 . Level 2 . | . . . Level 3 . | . . . Level 4 . | . . . Level 5 . | . . . High Security . | . . . Max Security . | . . . Peak Influence 283 | 5 283 . Initial . | . . . Average 103 | 1 107 . Influence Increases 911 | 15 606 290 Destroy 0b10 Robot/C 460 | . 300 160 Destroy 0b10 Robot/NC 60 | 15 45 . Destroy Leader 88 | . 78 10 Successful Hack 41 | . 41 . Select Force Hacks 30 | . 30 . Disable Machine 45 | . 45 . Destroy Structure 67 | . 67 . Lose Combat Pursuer 120 | . . 120 Influence Decreases 775 | 15 532 228 Entered New Map 36 | . . 36 Time Decay 701 | 15 532 154 Lost Part 38 | . . 38 Squads Dispatched 5 | . 5 . Investigation 5 | . 5 . Extermination . | . . . Reinforcement . | . . . Assault . | . . . Garrison . | . . . Intercept . | . . . Searches Triggered . | . . . Construction Impeded . | . . . Haulers Reinforced . | . . . Active Scanning Responses . | . . . Cargo Convoy Interrupts . | . . . Stealth | -11 -10 -10 --------- Run | Yrd Mat Sub Distress Signals . | . . . Communications Jammed . | . . . Distress Signals . | . . . Times Spotted 35 | . 17 18 Peak Tracking Total 6 | . 4 6 Tactical Retreats 4 | . . 4 Traps | -11 -10 -10 ------- Run | Yrd Mat Sub Traps Triggered 2 | . 1 1 Indirectly . | . . . Trap Hack Attempts . | . . . Triggered . | . . . Disarmed . | . . . Reprogrammed . | . . . Reused . | . . . Traps Extracted . | . . . Installed . | . . . Triggered . | . . . Machines | -11 -10 -10 ---------- Run | Yrd Mat Sub Machines Disabled 5 | . 3 2 Max in Single Turn 2 | . 2 2 Machines Repaired . | . . . Machines Dismantled . | . . . Machines Sabotaged . | . . . Overloaded Fab Kills . | . . . Hacking | -11 -10 -10 --------- Run | Yrd Mat Sub Machines Accessed 12 | . 11 1 Terminals 8 | . 8 . Fabricators . | . . . Repair Stations 1 | . 1 . Recycling Units 2 | . 2 . Scanalyzers . | . . . Garrison Access . | . . . Total Hacks 52 | . 48 4 Successful 29 | . 25 4 Failed 23 | . 23 . Catastrophic 3 | . 3 . Database Lockouts . | . . . Manual 35 | . 35 . Terminals 32 | . 32 . Fabricators . | . . . Repair Stations 5 | . 5 . Recycling Units 11 | . 11 . Scanalyzers . | . . . Garrison Access . | . . . Terminal Hacks 11 | . 7 4 Record 4 | . . 4 Robot Analysis 2 | . 2 . Prototype ID Bank 2 | . 2 . Locate Traps 3 | . 3 . Fabricator Hacks . | . . . Repair Station Hacks 4 | . 4 . Scan Component 2 | . 2 . Repair 2 | . 2 . Recycling Unit Hacks 2 | . 2 . Report Inventory 1 | . 1 . Retrieve Components 1 | . 1 . Scanalyzer . | . . . Garrison Access Hacks . | . . . Unauthorized Hacks 12 | . 12 . Terminals 6 | . 6 . Track 1 | . 1 . Botnet 4 | . 4 . Operators 1 | . 1 . Fabricators . | . . . Repair Stations . | . . . Recycling Units 6 | . 6 . Monitor 1 | . 1 . Reject 2 | . 2 . Recyclers 1 | . 1 . Mask 1 | . 1 . Tunnel 1 | . 1 . Scanalyzers . | . . . Garrison Access . | . . . Data Cores Recovered . | . . . Used . | . . . Hacking Detections 10 | . 10 . Full Trace Events 4 | . 4 . Feedback Events . | . . . Feedback Blocked . | . . . Robot Schematics Acquired . | . . . Robots Built . | . . . Authchips . | . . . Time . | . . . Total Robot Build Rating . | . . . Part Schematics Acquired . | . . . Parts Built . | . . . Authchips . | . . . Time . | . . . Total Part Build Rating . | . . . Part Studies Acquired . | . . . Parts Repaired 2 | . 2 . Time 52 | . 52 . Parts Recycled . | . . . Recycled Matter . | . . . Retrieved Matter . | . . . Retrieved Components 10 | . 10 . Parts Scanalyzed . | . . . Part Schematics Acquired . | . . . Parts Damaged . | . . . Bothacking | -11 -10 -10 ------------ Run | Yrd Mat Sub Used RIF Installer . | . . . Robots Hacked . | . . . Non-combat . | . . . Combat . | . . . Robot Hacks Applied . | . . . Relay Couplers Released . | . . . Fabnet Peak Effective % . | . . . Robots Rewired . | . . . Allies Hacked . | . . . Hacks Repelled . | . . . Allies | -11 -10 -10 -------- Run | Yrd Mat Sub Total Allies . | . . . Largest Group . | . . . Highest-Rated Group . | . . . Highest-Rated Ally . | . . . Total Orders . | . . . Ally Attacks . | . . . Total Damage . | . . . Kills . | . . . Allies Corrupted . | . . . Allies Melted . | . . . Intel | -11 -10 -10 ------- Run | Yrd Mat Sub Active Infowar (turns) 2846 | 11 2640 195 Optics 131 | . . 131 Terrain 2715 | 11 2640 64 Robot Analysis Total 2 | . 2 . Derelict Logs Recovered 1 | . . 1 Drone Launches . | . . . Drone Recoveries . | . . . Exploration | -11 -10 -10 ------------- Run | Yrd Mat Sub Turns Passed 4222 | 109 2640 1473 Spaces Moved 2238 | 60 1357 821 Core 8 | 8 . . Treads 2 | . . 2 Legs 1762 | 52 1357 353 Wheels 466 | . . 466 Hover . | . . . Flight . | . . . Fastest Speed 50 | 50 120 95 Average Speed 160 | 110 167 152 Slowest Speed 240 | 120 190 240 Overloaded Moves . | . . . Propulsion Burnouts . | . . . Robots Hopped . | . . . Potential Cave-ins . | . . . Cave-ins Triggered . | . . . Exploration Rate (%) 51 | 4 100 50 Regions Visited 2 Branch Regions 1 Pre-discovered Areas 2 | . 1 1 Known Exits Taken . | . . . Unknown Exits Taken 2 | 1 1 . Scrap Searched 3 | . . 3 Spaces Dug 1 | . 1 . Terrain Destroyed 80 | . 65 15 Melee . | . . . Projectile 1 | . 1 . AOE 79 | . 64 15 Terrain Rammed . | . . . Walls Destroyed . | . . . Machines Disabled . | . . . Actions | -11 -10 -10 --------- Run | Yrd Mat Sub Total 2709 | 88 1655 966 Wait 270 | 5 223 42 Move 2236 | 59 1356 821 Hop . | . . . Pick Up 36 | 7 12 17 Fast Attach 15 | 6 3 6 Attach 5 | 1 . 4 Detach 1 | . . 1 Swap 33 | 2 16 15 Drop 19 | . 8 11 Fire 93 | 8 37 48 Melee . | . . . Ram . | . . . Kick . | . . . Crush . | . . . Escape Stasis . | . . . Rewire . | . . . Trap . | . . . Miscellaneous 1 | . . 1 Route ------- -11/Scrapyard -10/Materials (discovered 5 exits: [*Mat x3] / [*Min] / *Sub) -10/Subcaves (discovered 1 exit: [*Rec]) History --------- Turn | Location | Event 5 | -11/Scrapyard | Discovered new exit (range 15) 110 | -11/Scrapyard | Entered Materials 257 | -10/Materials | Discovered new exit (range 3) 310 | -10/Materials | Build established: Mutant 328 | -10/Materials | Discovered new exit (range 16) 423 | -10/Materials | Discovered new exit (range 3) 503 | -10/Materials | Discovered new exit (range 16) 1244 | -10/Materials | Repaired EM Pulse Gun 1694 | -10/Materials | Discovered new exit (range 9) 1909 | -10/Materials | Repaired EM Pulse Gun 2750 | -10/Materials | Entered Subcaves 2845 | -10/Subcaves | Visited Clippyterm 2850 | -10/Subcaves | Learned Factory trap positions 3875 | -10/Subcaves | Core integrity fell below 50% 3963 | -10/Subcaves | Discovered new exit (range 15) 4131 | -10/Subcaves | Shifting Twisted Machinery released Barrage Gun 4181 | -10/Subcaves | Shifting Twisted Machinery released Battle Cannon 4217 | -10/Subcaves | Core integrity fell below 20% 4223 | -10/Subcaves | Destroyed by 5W-RHK(R) with Subdweller Beam Cannon Last Messages --------------- 04110_ Found Mak. Kinetic Plating. 04110_ Found 54 Matter. 04111_ Acquired 54 matter. 04112_ Dropped Trap Extractor. 04113_ Acquired Mak. Kinetic Plating. Barrage Gun falls loose from the Twisted Machinery. 04156_ Subatomizers dissect the Flamer. 04157_ 74-OTC(R) destroyed. 04166_ Acquired 38 matter. 04169_ Dropped Lgt. Cannon. 04176_ Acquired Barrage Gun. Battle Cannon falls loose from the Twisted Machinery. 04182_ Dropped Grenade Launcher. 04205_ Wheel destroyed. 04210_ Sub. Machine Gun destroyed. 04212_ Critical hit (Destroy). 04213_ Sub. Machine Gun destroyed. 04215_ Critical hit (Meltdown: +250). 04220_ IG-CI5(R) destroyed. Map ----- +----------------------------------------------------+ | ?????????????????????????????????????????????????? | | ?????????????????????????????????????????????????? | | ?????????????????????????????????????????????????? | | ?????????????????????????????????????????????????? | | ?????????????????????????????????????????????????? | | ?????????????????????????????????????????????????? | | ?????????????????????????????????????????????????? | | ?????????????????????????????????????????????????? | | ?????????????????????????????????????????????????? | | ?????????????????????????????????????????????????? | | ?????????????????????????????????????????????????? | | ?????????????????????????????????????????????????? | | ?????????????????????????????????????????????????? | | ?????????????????????????????????????????????????? | | ?????????????????????????????????????????????????? | | ????????????????????????????? ??????????????????? | | ????????????????????????????# ?????????????????? | | ????????????????? ????????? # ?????????????????? | | ????????????????" ???????#" ""??????????????????? | | ??????????????#"" ??????? ""###???????????????? | | ????????????###"""##?????# "# "????????????????? | | ?????????? # """#?????#"""" ?????????????????? | | ?????????? """""######"""" #??????????????????? | | ????????? """"""]""#"""#R#"" #???????????????????? | | ????????#" "" """ %*" #????????????????????? | | ??????????##### " ## ] #@ #????????????????????? | | ??????????????# #?###### #????????????????????? | | ??????????????# ???????## ##???????????????????? | | ??????????????##????????# #???????????????????? | | ?????????????????????#### #???????????????????? | | ?????????????????##### & ! ##???????????????????? | | ????????????????##" ] #????????????????????? | | ?????????????#### ## # #????????????????????? | | ????????????## # #### ## ###????????????????????? | | ????????????#!#|##??#######??????????????????????? | | ######??????### #????????????????????????????????? | | #????????#"#????????????????????????????????? | | #?????#### #????????????????????????????????? | | #?????# ##????????????????????????????????? | | ##????## #?????????????????????????????????? | | <#?????# #?????????????????????????????????? | | ##?????# ##????????????????????????????????? | | [ #??????# #????????????????????????????????? | | #??????# #????????????????????????????????? | | #??? ?## ##????????????????????????????????? | | ######## ## ##????????????????????????????????? | | ## ### #????????????????????????????????? | | ## ##????????????????????????????????? | | ##???????????????????????????????? | | #???????????????????????????????? | +----------------------------------------------------+ Best States ------------- Heat Dissipation 25 Energy Generation 15 Energy Capacity 250 Matter Stores 300 Matter Capacity 300 Sight Range 21 Terrain Scan Range 16 Terrain Scan Density 10 Armor Coverage 800 Resistance: KI 10 Evasion (%) 55 Recoil Reduction 1 Trap Extractor Capacity 4 Item Schematics ----------------- None Robot Schematics ------------------ None Fabricated ------------ Nothing Repaired ---------- EM Pulse Gun | 8% | -10/Materials EM Pulse Gun | 57% | -10/Materials Studied --------- None Alien Tech Used ----------------- None Achievements -------------- None Challenges ------------ None Game ------ Seed FortressImpulsePurifier Manual? 0 Play Time 00:35:29 Cumulative 666.0 hours Start 2025.11.02 @ 19:04:44 End 2025.11.02 @ 19:37:05 Sessions 1 Manual Loads 0 Difficulty Rogue Special Mode None Game No. 457 Rogue 457 Adventurer 0 Explorer 0 Win Type - Total 1 Types 1/0/0/0/0/0/0/0/0/0 Lore% 54 Gallery% 65 Achievement% 36 Wizard Run 0 Options --------- Layout 1 ASCII 0 Keyboard 0 Movement Mouse Keybinds 0 Fullscreen 1 Font 20/SmallcapsGlow Map View 54x42 Zoom Use 0% Tactical HUD 1 Map Filters NONE Filters NONE Steam 1 RUN: dfdaea44-a3c2-4672-bb30-bca5f9c1a1ca